[Event "Late-Titled-Tuesday-Blitz-July-09-2024"]
[Site "Chess.com"]
[Date "2024.07.09"]
[Round "6"]
[White "PhileKhoob"]
[Black "GiorgianBarbosa"]
[Result "0-1"]
[WhiteElo "2377"]
[BlackElo "2509"]
[TimeControl "180+1"]
[EndTime "15:06:01 PDT"]
[Termination "GiorgianBarbosa won by checkmate"]

1. Nf3 {[%clk 0:02:54.7]} 1... Nf6 {[%clk 0:02:59]} 2. g3 {[%clk 0:02:54.4]}
2... e6 {[%clk 0:02:58.9]} 3. Bg2 {[%clk 0:02:54.6]} 3... d5 {[%clk 0:02:59.8]}
4. O-O {[%clk 0:02:54.2]} 4... Be7 {[%clk 0:03:00.7]} 5. d4 {[%clk 0:02:54.7]}
5... O-O {[%clk 0:03:01.6]} 6. c4 {[%clk 0:02:55.2]} 6... a5 {[%clk 0:03:02.2]}
7. Nc3 {[%clk 0:02:53.3]} 7... c6 {[%clk 0:03:02.5]} 8. b3 {[%clk 0:02:50.5]}
8... b6 {[%clk 0:03:02.5]} 9. Bb2 {[%clk 0:02:48.5]} 9... Ba6 {[%clk 0:03:02.6]}
10. Nd2 {[%clk 0:02:40.5]} 10... b5 {[%clk 0:02:47.1]} 11. cxb5 {[%clk
0:02:32.8]} 11... cxb5 {[%clk 0:02:48]} 12. Rc1 {[%clk 0:02:13.4]} 12... Nbd7
{[%clk 0:02:41.7]} 13. Re1 {[%clk 0:02:11]} 13... b4 {[%clk 0:02:35.5]} 14. Na4
{[%clk 0:01:47.7]} 14... Bb5 {[%clk 0:02:33.4]} 15. e4 {[%clk 0:01:42.1]} 15...
Bxa4 {[%clk 0:02:29.3]} 16. bxa4 {[%clk 0:01:39.8]} 16... Nb6 {[%clk 0:02:18.7]}
17. e5 {[%clk 0:01:23.5]} 17... Nfd7 {[%clk 0:02:18.1]} 18. f4 {[%clk
0:01:22.2]} 18... Rc8 {[%clk 0:02:17.1]} 19. Qb3 {[%clk 0:01:04.8]} 19... Rxc1
{[%clk 0:02:03.1]} 20. Bxc1 {[%clk 0:01:02]} 20... Qc7 {[%clk 0:01:57.6]} 21.
Bb2 {[%clk 0:00:56]} 21... Rc8 {[%clk 0:01:56.5]} 22. g4 {[%clk 0:00:52.1]}
22... Nc4 {[%clk 0:01:45.9]} 23. Rc1 {[%clk 0:00:48]} 23... Ndb6 {[%clk
0:01:41.3]} 24. f5 {[%clk 0:00:33]} 24... Qd7 {[%clk 0:01:36.7]} 25. Rd1 {[%clk
0:00:25.9]} 25... Qxa4 {[%clk 0:01:28.8]} 26. fxe6 {[%clk 0:00:20.5]} 26... fxe6
{[%clk 0:01:21.9]} 27. Bc1 {[%clk 0:00:15.8]} 27... Qxb3 {[%clk 0:01:09.7]} 28.
axb3 {[%clk 0:00:14.2]} 28... Ne3 {[%clk 0:01:09.1]} 29. Re1 {[%clk 0:00:14.3]}
29... Nxg2 {[%clk 0:00:59.8]} 30. Kxg2 {[%clk 0:00:14.7]} 30... Bg5 {[%clk
0:01:00.7]} 31. Kg3 {[%clk 0:00:12.5]} 31... a4 {[%clk 0:00:55]} 32. bxa4 {[%clk
0:00:11.9]} 32... Nxa4 {[%clk 0:00:55.9]} 33. h4 {[%clk 0:00:11.8]} 33... Rxc1
{[%clk 0:00:47.5]} 34. Rxc1 {[%clk 0:00:11.1]} 34... Bxd2 {[%clk 0:00:48.4]} 35.
Rc8+ {[%clk 0:00:09.7]} 35... Kf7 {[%clk 0:00:48.8]} 36. Rb8 {[%clk 0:00:09.8]}
36... Bc3 {[%clk 0:00:47.7]} 37. Rb7+ {[%clk 0:00:03.6]} 37... Kf8 {[%clk
0:00:42.8]} 38. Rb8+ {[%clk 0:00:03.3]} 38... Ke7 {[%clk 0:00:43.1]} 39. Rb7+
{[%clk 0:00:03.2]} 39... Ke8 {[%clk 0:00:41.3]} 40. Rxg7 {[%clk 0:00:03.1]}
40... b3 {[%clk 0:00:40.2]} 41. Rxh7 {[%clk 0:00:03]} 41... b2 {[%clk
0:00:40.4]} 42. Rb7 {[%clk 0:00:03.5]} 42... Bxd4 {[%clk 0:00:40.2]} 43. Kf4
{[%clk 0:00:02.6]} 43... Nc5 {[%clk 0:00:34.9]} 44. Rb8+ {[%clk 0:00:02.1]}
44... Kd7 {[%clk 0:00:34.3]} 45. g5 {[%clk 0:00:01.9]} 45... Nd3+ {[%clk
0:00:29.3]} 46. Kg3 {[%clk 0:00:02.4]} 46... Bxe5+ {[%clk 0:00:26.8]} 47. Kg4
{[%clk 0:00:03]} 47... Bxb8 {[%clk 0:00:27.7]} 48. g6 {[%clk 0:00:03.3]} 48...
b1=Q {[%clk 0:00:27.3]} 49. Kh5 {[%clk 0:00:03.8]} 49... Qg1 {[%clk 0:00:28.2]}
50. Kh6 {[%clk 0:00:03.6]} 50... Bf4+ {[%clk 0:00:26.9]} 51. Kh7 {[%clk
0:00:02.8]} 51... Ne5 {[%clk 0:00:25.7]} 52. g7 {[%clk 0:00:02.5]} 52... Qg6+
{[%clk 0:00:16.3]} 53. Kh8 {[%clk 0:00:02.8]} 53... Nf7+ {[%clk 0:00:15]} 54.
Kg8 {[%clk 0:00:03.2]} 54... Bh6 {[%clk 0:00:14.9]} 55. Kf8 {[%clk 0:00:02.2]}
55... Qxg7# {[%clk 0:00:14.5]} 0-1

[Event "Late-Titled-Tuesday-Blitz-July-09-2024"]
[Site "Chess.com"]
[Date "2024.07.09"]
[Round "6"]
[White "Igor_Janik"]
[Black "LikeWater"]
[Result "1-0"]
[WhiteElo "2895"]
[BlackElo "2671"]
[TimeControl "180+1"]
[EndTime "15:06:03 PDT"]
[Termination "Igor_Janik won on time"]

1. e4 {[%clk 0:03:00.9]} 1... c5 {[%clk 0:02:59.9]} 2. Nf3 {[%clk 0:03:00]} 2...
e6 {[%clk 0:03:00.4]} 3. g3 {[%clk 0:02:58.6]} 3... d5 {[%clk 0:02:58.8]} 4.
exd5 {[%clk 0:02:57.4]} 4... exd5 {[%clk 0:02:59.7]} 5. d4 {[%clk 0:02:57.6]}
5... cxd4 {[%clk 0:03:00.1]} 6. Bg2 {[%clk 0:02:57.3]} 6... Bb4+ {[%clk
0:02:54.7]} 7. Nbd2 {[%clk 0:02:54.3]} 7... Nc6 {[%clk 0:02:53.5]} 8. O-O {[%clk
0:02:54.1]} 8... Bxd2 {[%clk 0:02:51]} 9. Qxd2 {[%clk 0:02:51]} 9... Qf6 {[%clk
0:02:48]} 10. b3 {[%clk 0:02:42.3]} 10... Bg4 {[%clk 0:02:38.2]} 11. Qe2+ {[%clk
0:02:25.9]} 11... Nge7 {[%clk 0:02:34.3]} 12. Bb2 {[%clk 0:02:26]} 12... O-O
{[%clk 0:02:28]} 13. h3 {[%clk 0:02:26]} 13... Bxf3 {[%clk 0:02:06.5]} 14. Qxf3
{[%clk 0:02:22.2]} 14... Qg6 {[%clk 0:01:51.6]} 15. Qd1 {[%clk 0:02:14.3]} 15...
Rfd8 {[%clk 0:01:48.9]} 16. Bxd4 {[%clk 0:02:08.3]} 16... Nxd4 {[%clk
0:01:48.5]} 17. Qxd4 {[%clk 0:02:09.2]} 17... Qxc2 {[%clk 0:01:46.3]} 18. Rfc1
{[%clk 0:02:07]} 18... Qg6 {[%clk 0:01:45.3]} 19. Qb4 {[%clk 0:02:07.1]} 19...
Rd7 {[%clk 0:01:43.5]} 20. Rc5 {[%clk 0:01:57.9]} 20... Rad8 {[%clk 0:01:23.9]}
21. Rac1 {[%clk 0:01:56.4]} 21... h5 {[%clk 0:01:22.5]} 22. h4 {[%clk
0:01:45.3]} 22... Nc6 {[%clk 0:01:21]} 23. Qf4 {[%clk 0:01:42.1]} 23... Qe6
{[%clk 0:01:00.2]} 24. Rd1 {[%clk 0:01:31.5]} 24... g6 {[%clk 0:00:50.9]} 25. b4
{[%clk 0:01:31]} 25... Ne5 {[%clk 0:00:34.8]} 26. Qd4 {[%clk 0:01:25.5]} 26...
Ng4 {[%clk 0:00:31.6]} 27. Rxd5 {[%clk 0:01:19.2]} 27... Rxd5 {[%clk 0:00:27.9]}
28. Bxd5 {[%clk 0:01:18.9]} 28... Qe2 {[%clk 0:00:28.5]} 29. Rd2 {[%clk
0:01:09.4]} 29... Qe1+ {[%clk 0:00:23.7]} 30. Kg2 {[%clk 0:01:09.8]} 30... Kh7
{[%clk 0:00:23.9]} 31. Qf4 {[%clk 0:01:06.2]} 31... Rd7 {[%clk 0:00:20.2]} 32.
Rc2 {[%clk 0:01:00.9]} 32... Qd1 {[%clk 0:00:16.6]} 33. Bb3 {[%clk 0:00:57.7]}
33... Qd3 {[%clk 0:00:14.7]} 34. Rc8 {[%clk 0:00:48.2]} 34... Kg7 {[%clk
0:00:14.3]} 35. Re8 {[%clk 0:00:30.6]} 35... Qd2 {[%clk 0:00:13.2]} 36. Qf3
{[%clk 0:00:20.7]} 36... Qxb4 {[%clk 0:00:13.3]} 37. Re2 {[%clk 0:00:21.3]}
37... Qd4 {[%clk 0:00:13.1]} 38. Rc2 {[%clk 0:00:19.4]} 38... Qf6 {[%clk
0:00:13.2]} 39. Qe4 {[%clk 0:00:18.6]} 39... Qe5 {[%clk 0:00:11]} 40. Qc4 {[%clk
0:00:17.8]} 40... b6 {[%clk 0:00:06.9]} 41. Re2 {[%clk 0:00:17.7]} 41... Qd6
{[%clk 0:00:07.1]} 42. Qe4 {[%clk 0:00:16.4]} 42... Qd4 {[%clk 0:00:06.7]} 43.
Qf3 {[%clk 0:00:16]} 43... Qf6 {[%clk 0:00:06.6]} 44. Qe4 {[%clk 0:00:16.1]}
44... a5 {[%clk 0:00:05.7]} 45. Ba4 {[%clk 0:00:15.3]} 45... Rd4 {[%clk
0:00:04.6]} 46. Qc2 {[%clk 0:00:15.3]} 46... Qd6 {[%clk 0:00:04]} 47. Bb3 {[%clk
0:00:15.4]} 47... Nf6 {[%clk 0:00:03.8]} 48. Qc3 {[%clk 0:00:15]} 48... Rd3
{[%clk 0:00:03.9]} 49. Qb2 {[%clk 0:00:15]} 49... Qc6+ {[%clk 0:00:04]} 50. Kh2
{[%clk 0:00:14.7]} 50... Rc3 {[%clk 0:00:03.8]} 51. Qd2 {[%clk 0:00:11.8]} 51...
Rc1 {[%clk 0:00:03.8]} 52. Bd1 {[%clk 0:00:10.5]} 52... Qc5 {[%clk 0:00:03.4]}
53. Kg2 {[%clk 0:00:09.9]} 53... Qc6+ {[%clk 0:00:03.4]} 54. f3 {[%clk
0:00:10.5]} 54... Rc5 {[%clk 0:00:02.1]} 55. Bb3 {[%clk 0:00:10.6]} 55... Qc7
{[%clk 0:00:02]} 56. Qd4 {[%clk 0:00:10.1]} 56... Rc6 {[%clk 0:00:02.2]} 57. Rd2
{[%clk 0:00:10.1]} 57... Qe7 {[%clk 0:00:02.1]} 58. g4 {[%clk 0:00:10.3]} 58...
hxg4 {[%clk 0:00:01.7]} 59. fxg4 {[%clk 0:00:10.8]} 59... Qc5 {[%clk 0:00:01.8]}
60. Qf4 {[%clk 0:00:09.2]} 60... Qc3 {[%clk 0:00:01.6]} 61. Rf2 {[%clk 0:00:09]}
1-0

[Event "Late-Titled-Tuesday-Blitz-July-09-2024"]
[Site "Chess.com"]
[Date "2024.07.09"]
[Round "6"]
[White "nitpicker"]
[Black "Jahonas"]
[Result "0-1"]
[WhiteElo "2306"]
[BlackElo "2436"]
[TimeControl "180+1"]
[EndTime "15:06:06 PDT"]
[Termination "Jahonas won on time"]

1. d4 {[%clk 0:03:00.9]} 1... d5 {[%clk 0:02:59]} 2. c4 {[%clk 0:03:01]} 2... e6
{[%clk 0:02:59.3]} 3. Nf3 {[%clk 0:03:00.6]} 3... c6 {[%clk 0:02:58.5]} 4. Qc2
{[%clk 0:02:57.1]} 4... Nf6 {[%clk 0:02:58.3]} 5. g3 {[%clk 0:02:56.1]} 5... b6
{[%clk 0:02:57.8]} 6. Bg2 {[%clk 0:02:55.5]} 6... Bb7 {[%clk 0:02:58]} 7. O-O
{[%clk 0:02:54.9]} 7... Nbd7 {[%clk 0:02:58]} 8. Rd1 {[%clk 0:02:55.3]} 8... Rc8
{[%clk 0:02:57.2]} 9. Nc3 {[%clk 0:02:50.3]} 9... Be7 {[%clk 0:02:57.2]} 10. e4
{[%clk 0:02:47.7]} 10... dxe4 {[%clk 0:02:55.8]} 11. Ng5 {[%clk 0:02:47]} 11...
O-O {[%clk 0:02:52.3]} 12. Ncxe4 {[%clk 0:02:03.3]} 12... h6 {[%clk 0:02:49.4]}
13. Nh3 {[%clk 0:01:57]} 13... Nxe4 {[%clk 0:02:42.8]} 14. Bxe4 {[%clk
0:01:55.1]} 14... Nf6 {[%clk 0:02:42]} 15. Bg2 {[%clk 0:01:52.4]} 15... Qc7
{[%clk 0:02:40]} 16. Bf4 {[%clk 0:01:50.4]} 16... Bd6 {[%clk 0:02:39.3]} 17. c5
{[%clk 0:01:46.2]} 17... bxc5 {[%clk 0:02:32.2]} 18. dxc5 {[%clk 0:01:38]} 18...
Bxf4 {[%clk 0:02:30.8]} 19. Nxf4 {[%clk 0:01:38.7]} 19... Nd5 {[%clk 0:02:28.9]}
20. Ne2 {[%clk 0:01:30.8]} 20... a5 {[%clk 0:02:25.5]} 21. a3 {[%clk 0:01:27.1]}
21... Ba6 {[%clk 0:02:24.4]} 22. Nd4 {[%clk 0:01:24.9]} 22... Rb8 {[%clk
0:02:19.1]} 23. Rab1 {[%clk 0:01:23]} 23... Rb7 {[%clk 0:02:13.2]} 24. h4 {[%clk
0:01:06.4]} 24... Rfb8 {[%clk 0:02:11.6]} 25. Rd2 {[%clk 0:01:06.9]} 25... Ra7
{[%clk 0:01:50.7]} 26. Be4 {[%clk 0:01:04.6]} 26... Bc8 {[%clk 0:01:49.8]} 27.
Bd3 {[%clk 0:00:45.1]} 27... Bd7 {[%clk 0:01:46.2]} 28. Kg2 {[%clk 0:00:42.5]}
28... Be8 {[%clk 0:01:46]} 29. Be2 {[%clk 0:00:33.7]} 29... Qe5 {[%clk
0:01:45.2]} 30. Nf3 {[%clk 0:00:24.3]} 30... Qf6 {[%clk 0:01:43.9]} 31. Qe4
{[%clk 0:00:19.8]} 31... Rab7 {[%clk 0:01:36.1]} 32. Qd4 {[%clk 0:00:19.7]}
32... Nc3 {[%clk 0:01:29.5]} 33. Re1 {[%clk 0:00:10.6]} 33... Qxd4 {[%clk
0:01:14.6]} 34. Rxd4 {[%clk 0:00:10.5]} 34... Rxb2 {[%clk 0:01:11.6]} 35. Ba6
{[%clk 0:00:10.3]} 35... Nd5 {[%clk 0:01:06.7]} 36. Ne5 {[%clk 0:00:09.4]} 36...
Kf8 {[%clk 0:01:03.3]} 37. Bc4 {[%clk 0:00:08.5]} 37... Ke7 {[%clk 0:01:02.4]}
38. Bxd5 {[%clk 0:00:08.3]} 38... cxd5 {[%clk 0:01:02.6]} 39. c6 {[%clk
0:00:08.6]} 39... Rc2 {[%clk 0:01:02.5]} 40. Kg1 {[%clk 0:00:04.8]} 40... Bxc6
{[%clk 0:01:01.4]} 41. Nxc6+ {[%clk 0:00:04.2]} 41... Rxc6 {[%clk 0:01:01.5]}
42. Rxd5 {[%clk 0:00:04.8]} 42... Ra8 {[%clk 0:00:38]} 43. Rb5 {[%clk
0:00:04.4]} 43... Rc3 {[%clk 0:00:37.2]} 44. a4 {[%clk 0:00:02.3]} 44... Rc4
{[%clk 0:00:35.6]} 45. Rb7+ {[%clk 0:00:02.4]} 45... Kf6 {[%clk 0:00:35.5]} 46.
Re3 {[%clk 0:00:01.9]} 46... Rf8 {[%clk 0:00:34]} 47. Rf3+ {[%clk 0:00:01.7]}
47... Kg6 {[%clk 0:00:34.3]} 48. Ra3 {[%clk 0:00:01.2]} 48... Rb4 {[%clk
0:00:33]} 49. Rxb4 {[%clk 0:00:01]} 49... axb4 {[%clk 0:00:32.9]} 50. Rb3 {[%clk
0:00:01.9]} 50... Rb8 {[%clk 0:00:33]} 51. a5 {[%clk 0:00:02.4]} 51... Kf5
{[%clk 0:00:33.4]} 52. a6 {[%clk 0:00:02.4]} 52... Ke5 {[%clk 0:00:33.6]} 53. a7
{[%clk 0:00:02.6]} 53... Ra8 {[%clk 0:00:34]} 54. Rxb4 {[%clk 0:00:03.1]} 54...
Rxa7 {[%clk 0:00:34.4]} 55. Rf4 {[%clk 0:00:03]} 55... f5 {[%clk 0:00:34]} 56.
Kg2 {[%clk 0:00:03]} 56... g5 {[%clk 0:00:34.2]} 57. hxg5 {[%clk 0:00:03.4]}
57... hxg5 {[%clk 0:00:35.1]} 58. Rb4 {[%clk 0:00:03.1]} 58... Ra3 {[%clk
0:00:34.8]} 59. Rb5+ {[%clk 0:00:02.9]} 59... Kf6 {[%clk 0:00:34.9]} 60. Rb6
{[%clk 0:00:03]} 60... g4 {[%clk 0:00:35.2]} 61. Rb5 {[%clk 0:00:02.3]} 61...
Kg5 {[%clk 0:00:34.8]} 62. Rc5 {[%clk 0:00:02.2]} 62... Ra2 {[%clk 0:00:33.7]}
63. Rb5 {[%clk 0:00:02.2]} 63... Re2 {[%clk 0:00:33.8]} 64. Rc5 {[%clk
0:00:02.2]} 64... e5 {[%clk 0:00:33.5]} 65. Rb5 {[%clk 0:00:01.6]} 65... f4
{[%clk 0:00:32.8]} 66. gxf4+ {[%clk 0:00:01.1]} 66... Kxf4 {[%clk 0:00:32.9]}
67. Rb4+ {[%clk 0:00:01.4]} 67... e4 {[%clk 0:00:32.7]} 68. Kf1 {[%clk
0:00:01.9]} 68... Ra2 {[%clk 0:00:32.4]} 69. Rb3 {[%clk 0:00:01.9]} 69... Ra1+
{[%clk 0:00:23]} 70. Kg2 {[%clk 0:00:02]} 70... Rd1 {[%clk 0:00:23.1]} 71. Re3
{[%clk 0:00:01.6]} 71... Rd3 {[%clk 0:00:23]} 0-1

[Event "Late-Titled-Tuesday-Blitz-July-09-2024"]
[Site "Chess.com"]
[Date "2024.07.09"]
[Round "6"]
[White "LUISMIGUELOV"]
[Black "adrivillu"]
[Result "1-0"]
[WhiteElo "2214"]
[BlackElo "2417"]
[TimeControl "180+1"]
[EndTime "15:06:06 PDT"]
[Termination "LUISMIGUELOV won on time"]

1. d4 {[%clk 0:02:53.2]} 1... d5 {[%clk 0:02:58.3]} 2. c3 {[%clk 0:02:53]} 2...
Nf6 {[%clk 0:02:54.8]} 3. Bg5 {[%clk 0:02:52.9]} 3... Ne4 {[%clk 0:02:49.3]} 4.
h4 {[%clk 0:02:52.8]} 4... c5 {[%clk 0:02:39.2]} 5. e3 {[%clk 0:02:51.6]} 5...
Nc6 {[%clk 0:02:36.3]} 6. Nd2 {[%clk 0:02:49.6]} 6... Nxd2 {[%clk 0:02:22.1]} 7.
Qxd2 {[%clk 0:02:48.6]} 7... f6 {[%clk 0:02:19.5]} 8. Bf4 {[%clk 0:02:47.6]}
8... e5 {[%clk 0:02:20.2]} 9. Bg3 {[%clk 0:02:38.9]} 9... cxd4 {[%clk
0:02:16.2]} 10. exd4 {[%clk 0:02:32.8]} 10... exd4 {[%clk 0:02:11.7]} 11. Bb5
{[%clk 0:02:13.1]} 11... dxc3 {[%clk 0:02:05.7]} 12. bxc3 {[%clk 0:02:11.6]}
12... Bc5 {[%clk 0:01:56.4]} 13. Ne2 {[%clk 0:02:09.9]} 13... O-O {[%clk
0:01:54.3]} 14. O-O {[%clk 0:02:10.3]} 14... Bf5 {[%clk 0:01:48.4]} 15. Nd4
{[%clk 0:02:09.5]} 15... Nxd4 {[%clk 0:01:44.3]} 16. cxd4 {[%clk 0:02:09.3]}
16... Bd6 {[%clk 0:01:44.8]} 17. Bxd6 {[%clk 0:02:07.7]} 17... Qxd6 {[%clk
0:01:45.7]} 18. Rfe1 {[%clk 0:01:59.8]} 18... a6 {[%clk 0:01:42.7]} 19. Bd3
{[%clk 0:01:57.7]} 19... Bxd3 {[%clk 0:01:42.1]} 20. Qxd3 {[%clk 0:01:57.7]}
20... Rfe8 {[%clk 0:01:40.8]} 21. Rab1 {[%clk 0:01:50.8]} 21... b5 {[%clk
0:01:37.6]} 22. a4 {[%clk 0:01:49.2]} 22... b4 {[%clk 0:01:33.9]} 23. a5 {[%clk
0:01:43.6]} 23... Re7 {[%clk 0:01:19.7]} 24. Rxe7 {[%clk 0:01:40.2]} 24... Qxe7
{[%clk 0:01:19.5]} 25. Qb3 {[%clk 0:01:38.5]} 25... Qe4 {[%clk 0:01:12.2]} 26.
g3 {[%clk 0:01:21.4]} 26... Qxd4 {[%clk 0:01:07.9]} 27. Qxb4 {[%clk 0:01:20.4]}
27... Qxb4 {[%clk 0:01:02.2]} 28. Rxb4 {[%clk 0:01:19.7]} 28... Kf7 {[%clk
0:01:00.6]} 29. Rb6 {[%clk 0:01:18.1]} 29... Ra7 {[%clk 0:00:51.4]} 30. Kf1
{[%clk 0:01:18.1]} 30... Kg6 {[%clk 0:00:46.8]} 31. Ke2 {[%clk 0:01:18.1]} 31...
Kf5 {[%clk 0:00:47.2]} 32. f3 {[%clk 0:01:17.5]} 32... Ke5 {[%clk 0:00:47.1]}
33. Kd3 {[%clk 0:01:16]} 33... d4 {[%clk 0:00:37.7]} 34. h5 {[%clk 0:01:15.1]}
34... Kd5 {[%clk 0:00:37.2]} 35. Rb4 {[%clk 0:01:03.6]} 35... Rc7 {[%clk
0:00:24.2]} 36. Rxd4+ {[%clk 0:01:02.7]} 36... Ke5 {[%clk 0:00:24.7]} 37. Re4+
{[%clk 0:00:55.5]} 37... Kf5 {[%clk 0:00:20]} 38. g4+ {[%clk 0:00:54.2]} 38...
Kg5 {[%clk 0:00:19.2]} 39. Re6 {[%clk 0:00:53.4]} 39... Ra7 {[%clk 0:00:12.3]}
40. Ke3 {[%clk 0:00:42.8]} 40... f5 {[%clk 0:00:10.7]} 41. gxf5 {[%clk 0:00:42]}
41... Kxh5 {[%clk 0:00:11]} 42. f6 {[%clk 0:00:40]} 42... g5 {[%clk 0:00:06.6]}
43. Re7 {[%clk 0:00:39.5]} 43... Ra8 {[%clk 0:00:05.3]} 44. Rxh7+ {[%clk
0:00:38.8]} 44... Kg6 {[%clk 0:00:05.9]} 45. Rb7 {[%clk 0:00:35.8]} 45... Kxf6
{[%clk 0:00:06.2]} 46. Rb6+ {[%clk 0:00:34.2]} 46... Kf5 {[%clk 0:00:06.7]} 47.
Rc6 {[%clk 0:00:33.7]} 47... Ra7 {[%clk 0:00:03.7]} 48. Rc5+ {[%clk 0:00:33.2]}
48... Kf6 {[%clk 0:00:03]} 49. Ke4 {[%clk 0:00:31.7]} 49... Re7+ {[%clk
0:00:03]} 50. Kd4 {[%clk 0:00:27.9]} 50... Re6 {[%clk 0:00:03.3]} 51. Kd5 {[%clk
0:00:24.4]} 51... Re3 {[%clk 0:00:01.7]} 52. Rc6+ {[%clk 0:00:23.5]} 52... Kf5
{[%clk 0:00:01.9]} 53. Rxa6 {[%clk 0:00:22.4]} 53... Rxf3 {[%clk 0:00:02.5]} 54.
Ra8 {[%clk 0:00:21.8]} 54... Ra3 {[%clk 0:00:03]} 55. a6 {[%clk 0:00:18.9]}
55... g4 {[%clk 0:00:01.6]} 56. a7 {[%clk 0:00:18.8]} 56... Kf4 {[%clk
0:00:01.8]} 57. Rf8+ {[%clk 0:00:18.5]} 57... Kg3 {[%clk 0:00:01.7]} 58. a8=Q
{[%clk 0:00:18.5]} 58... Rxa8 {[%clk 0:00:02.1]} 59. Rxa8 {[%clk 0:00:18.5]}
59... Kf2 {[%clk 0:00:02.8]} 60. Rf8+ {[%clk 0:00:15.3]} 1-0

[Event "Late-Titled-Tuesday-Blitz-July-09-2024"]
[Site "Chess.com"]
[Date "2024.07.09"]
[Round "6"]
[White "bancsoo"]
[Black "Hattori-Hanzo78"]
[Result "1-0"]
[WhiteElo "2853"]
[BlackElo "2596"]
[TimeControl "180+1"]
[EndTime "15:06:08 PDT"]
[Termination "bancsoo won by checkmate"]

1. d4 {[%clk 0:03:00.9]} 1... c5 {[%clk 0:02:59.4]} 2. d5 {[%clk 0:03:00.5]}
2... d6 {[%clk 0:02:59.3]} 3. c4 {[%clk 0:02:59.7]} 3... Nf6 {[%clk 0:02:59]} 4.
Nc3 {[%clk 0:02:59.8]} 4... g6 {[%clk 0:02:58.7]} 5. e4 {[%clk 0:02:59.8]} 5...
b5 {[%clk 0:02:58.3]} 6. cxb5 {[%clk 0:02:55.8]} 6... a6 {[%clk 0:02:58.8]} 7.
Nf3 {[%clk 0:02:49.5]} 7... Bg7 {[%clk 0:02:58.8]} 8. bxa6 {[%clk 0:02:41.5]}
8... O-O {[%clk 0:02:58.3]} 9. Be2 {[%clk 0:02:36.3]} 9... Bxa6 {[%clk
0:02:58.1]} 10. O-O {[%clk 0:02:32.9]} 10... Nbd7 {[%clk 0:02:53.1]} 11. Nd2
{[%clk 0:02:29.4]} 11... Nb6 {[%clk 0:02:48.6]} 12. a4 {[%clk 0:02:21.3]} 12...
Bxe2 {[%clk 0:02:42.7]} 13. Qxe2 {[%clk 0:02:22.2]} 13... Ra7 {[%clk 0:02:36.4]}
14. Ra3 {[%clk 0:02:12.9]} 14... Qa8 {[%clk 0:02:29.8]} 15. b3 {[%clk 0:02:09]}
15... Ne8 {[%clk 0:02:25.4]} 16. Nb5 {[%clk 0:02:04.8]} 16... Rb7 {[%clk
0:02:25.6]} 17. Nc4 {[%clk 0:01:55.6]} 17... Qa6 {[%clk 0:02:07.3]} 18. Bd2
{[%clk 0:01:31.1]} 18... Nc7 {[%clk 0:01:57.3]} 19. Nxc7 {[%clk 0:01:22.6]}
19... Rxc7 {[%clk 0:01:56.2]} 20. a5 {[%clk 0:01:21.2]} 20... Nd7 {[%clk
0:01:46.2]} 21. Qd3 {[%clk 0:01:13.8]} 21... Rb8 {[%clk 0:01:44]} 22. h4 {[%clk
0:01:06]} 22... Rcb7 {[%clk 0:01:33.6]} 23. h5 {[%clk 0:01:00]} 23... Rb5 {[%clk
0:01:23]} 24. h6 {[%clk 0:00:58.8]} 24... Bh8 {[%clk 0:01:20.1]} 25. Bc3 {[%clk
0:00:55.3]} 25... Rxb3 {[%clk 0:01:10]} 26. Rxb3 {[%clk 0:00:47.1]} 26... Rxb3
{[%clk 0:01:10.9]} 27. Rc1 {[%clk 0:00:47.7]} 27... Bd4 {[%clk 0:00:58.4]} 28.
g3 {[%clk 0:00:20.1]} 28... Ra3 {[%clk 0:00:55.4]} 29. Kg2 {[%clk 0:00:19.1]}
29... Rb3 {[%clk 0:00:39.6]} 30. Rc2 {[%clk 0:00:18.5]} 30... Qb5 {[%clk
0:00:38.6]} 31. Rc1 {[%clk 0:00:17.3]} 31... Nb8 {[%clk 0:00:36.8]} 32. Qd2
{[%clk 0:00:13.6]} 32... Qxc4 {[%clk 0:00:18.5]} 33. Bxd4 {[%clk 0:00:12.8]}
33... Qb5 {[%clk 0:00:18]} 34. Bc3 {[%clk 0:00:12.2]} 34... f6 {[%clk
0:00:17.5]} 35. Qf4 {[%clk 0:00:11.8]} 35... Qd7 {[%clk 0:00:14.7]} 36. Bd2
{[%clk 0:00:09.5]} 36... Kf7 {[%clk 0:00:14]} 37. g4 {[%clk 0:00:08]} 37... Na6
{[%clk 0:00:12.5]} 38. g5 {[%clk 0:00:08.5]} 38... Qc8 {[%clk 0:00:06.6]} 39.
Rh1 {[%clk 0:00:06.8]} 39... Qd7 {[%clk 0:00:06.4]} 40. Bc1 {[%clk 0:00:05.7]}
40... c4 {[%clk 0:00:06.6]} 41. gxf6 {[%clk 0:00:06]} 41... exf6 {[%clk
0:00:06.8]} 42. Be3 {[%clk 0:00:06.7]} 42... Rd3 {[%clk 0:00:06.3]} 43. Rb1
{[%clk 0:00:06.3]} 43... c3 {[%clk 0:00:04.5]} 44. Rb6 {[%clk 0:00:06.6]} 44...
Nc5 {[%clk 0:00:02.2]} 45. Rxd6 {[%clk 0:00:06.7]} 45... Qe7 {[%clk 0:00:02.7]}
46. Bxc5 {[%clk 0:00:06]} 46... c2 {[%clk 0:00:03]} 47. Rc6 {[%clk 0:00:06.6]}
47... Qe5 {[%clk 0:00:02.1]} 48. Qxe5 {[%clk 0:00:06.7]} 48... fxe5 {[%clk
0:00:02.6]} 49. Be3 {[%clk 0:00:07.4]} 49... Rd1 {[%clk 0:00:01.7]} 50. Rxc2
{[%clk 0:00:07.4]} 50... g5 {[%clk 0:00:02.6]} 51. Rc7+ {[%clk 0:00:07.2]} 51...
Kg6 {[%clk 0:00:02]} 52. a6 {[%clk 0:00:07.9]} 52... Ra1 {[%clk 0:00:02.1]} 53.
a7 {[%clk 0:00:08.2]} 53... Kh5 {[%clk 0:00:01.9]} 54. Rc8 {[%clk 0:00:08.4]}
54... Kg4 {[%clk 0:00:01.7]} 55. a8=Q {[%clk 0:00:08.8]} 55... Rxa8 {[%clk
0:00:01.8]} 56. Rxa8 {[%clk 0:00:09.7]} 56... Kh4 {[%clk 0:00:02.6]} 57. d6
{[%clk 0:00:09.4]} 57... g4 {[%clk 0:00:03.5]} 58. d7 {[%clk 0:00:09.7]} 58...
g3 {[%clk 0:00:04.4]} 59. d8=Q+ {[%clk 0:00:09.4]} 59... Kh5 {[%clk 0:00:04.7]}
60. Qg5# {[%clk 0:00:09]} 1-0